[Event "Early-Titled-Tuesday-Blitz-August-29-2023"]
[Site "Chess.com"]
[Date "2023.08.29"]
[Round "1"]
[White "WildTricks"]
[Black "Goi_Manne"]
[Result "1-0"]
[WhiteElo "2644"]
[BlackElo "2322"]
[TimeControl "180+1"]
[EndTime "8:05:45 PDT"]
[Termination "WildTricks won by resignation"]

1. e4 {[%clk 0:03:00.9]} 1... c6 {[%clk 0:02:59.3]} 2. Nf3 {[%clk 0:03:00.9]}
2... d5 {[%clk 0:03:00]} 3. d3 {[%clk 0:03:01.8]} 3... dxe4 {[%clk 0:02:59.9]}
4. dxe4 {[%clk 0:03:02.7]} 4... Qxd1+ {[%clk 0:02:58.1]} 5. Kxd1 {[%clk
0:03:03.6]} 5... Bg4 {[%clk 0:02:58.7]} 6. Be2 {[%clk 0:03:03.8]} 6... Nd7
{[%clk 0:02:56.1]} 7. Ne1 {[%clk 0:03:03.8]} 7... Bxe2+ {[%clk 0:02:55.7]} 8.
Kxe2 {[%clk 0:03:04.7]} 8... e5 {[%clk 0:02:56.3]} 9. a4 {[%clk 0:03:04]} 9...
a5 {[%clk 0:02:55.7]} 10. f3 {[%clk 0:03:00.7]} 10... Bc5 {[%clk 0:02:55.8]} 11.
Nd3 {[%clk 0:02:59.8]} 11... Bb6 {[%clk 0:02:54.5]} 12. Na3 {[%clk 0:02:56.5]}
12... f6 {[%clk 0:02:44.2]} 13. Nc4 {[%clk 0:02:55.6]} 13... Bc7 {[%clk
0:02:28.4]} 14. Be3 {[%clk 0:02:54.4]} 14... Ne7 {[%clk 0:02:25.8]} 15. Rhd1
{[%clk 0:02:51.4]} 15... O-O {[%clk 0:02:23.7]} 16. Nc5 {[%clk 0:02:50.1]} 16...
Nxc5 {[%clk 0:01:25.3]} 17. Bxc5 {[%clk 0:02:51]} 17... Bd8 {[%clk 0:01:15.9]}
18. Rd7 {[%clk 0:02:33.5]} 18... Rf7 {[%clk 0:01:15.3]} 19. Rad1 {[%clk
0:02:30.7]} 19... Nd5 {[%clk 0:01:07.3]} 20. Rxf7 {[%clk 0:02:00.7]} 20... Nf4+
{[%clk 0:01:06.6]} 21. Kf2 {[%clk 0:02:01]} 21... Kxf7 {[%clk 0:01:07.5]} 22.
Rd7+ {[%clk 0:02:00.5]} 22... Ke6 {[%clk 0:01:08.2]} 23. Rxb7 {[%clk 0:01:59.9]}
23... g5 {[%clk 0:01:02.3]} 24. Rxh7 {[%clk 0:01:57.3]} 24... Rb8 {[%clk
0:01:01.7]} 25. g3 {[%clk 0:01:36]} 25... Ng6 {[%clk 0:01:00.6]} 26. Rg7 {[%clk
0:01:36.2]} 26... Be7 {[%clk 0:00:54.7]} 27. Bxe7 {[%clk 0:01:19.4]} 27... Nxe7
{[%clk 0:00:55.6]} 28. b3 {[%clk 0:01:19.2]} 28... Rh8 {[%clk 0:00:50.5]} 29.
Kg2 {[%clk 0:01:17.8]} 29... Ra8 {[%clk 0:00:50.2]} 30. h4 {[%clk 0:01:16.3]}
30... gxh4 {[%clk 0:00:50.6]} 31. gxh4 {[%clk 0:01:17.2]} 31... c5 {[%clk
0:00:49.9]} 32. Kg3 {[%clk 0:01:15.5]} 32... Nc6 {[%clk 0:00:50.5]} 33. c3
{[%clk 0:01:11.2]} 33... Rb8 {[%clk 0:00:47.6]} 34. Rc7 {[%clk 0:01:11.1]} 34...
Ne7 {[%clk 0:00:41.3]} 35. Nxa5 {[%clk 0:01:10.5]} 35... f5 {[%clk 0:00:42]} 36.
Rxe7+ {[%clk 0:01:09.7]} 1-0

[Event "Early-Titled-Tuesday-Blitz-August-29-2023"]
[Site "Chess.com"]
[Date "2023.08.29"]
[Round "1"]
[White "Angry_Twin"]
[Black "regular_legs"]
[Result "1-0"]
[WhiteElo "2956"]
[BlackElo "2496"]
[TimeControl "180+1"]
[EndTime "8:05:48 PDT"]
[Termination "Angry_Twin won by resignation"]

1. e4 {[%clk 0:02:59]} 1... c6 {[%clk 0:02:58.7]} 2. Nf3 {[%clk 0:02:56.1]} 2...
d5 {[%clk 0:02:59.6]} 3. d3 {[%clk 0:02:56.6]} 3... Bg4 {[%clk 0:02:53.5]} 4. h3
{[%clk 0:02:50.3]} 4... Bh5 {[%clk 0:02:53.8]} 5. Nc3 {[%clk 0:02:50]} 5... e6
{[%clk 0:02:53]} 6. g4 {[%clk 0:02:49.6]} 6... Bg6 {[%clk 0:02:53.1]} 7. h4
{[%clk 0:02:49.8]} 7... dxe4 {[%clk 0:02:44.3]} 8. Ne5 {[%clk 0:02:45.8]} 8...
Bd6 {[%clk 0:02:25.8]} 9. Nxg6 {[%clk 0:02:41.5]} 9... hxg6 {[%clk 0:02:25.5]}
10. Nxe4 {[%clk 0:02:40.3]} 10... Be7 {[%clk 0:02:12.1]} 11. g5 {[%clk
0:02:35.6]} 11... Na6 {[%clk 0:02:07.1]} 12. Be3 {[%clk 0:02:32.7]} 12... Nc5
{[%clk 0:01:43.5]} 13. Qf3 {[%clk 0:02:01.6]} 13... Qa5+ {[%clk 0:01:34.4]} 14.
c3 {[%clk 0:01:56]} 14... Qa4 {[%clk 0:01:34.4]} 15. Nxc5 {[%clk 0:01:52.3]}
15... Bxc5 {[%clk 0:01:31]} 16. Bxc5 {[%clk 0:01:52.3]} 16... Ne7 {[%clk
0:01:30.7]} 17. Bxe7 {[%clk 0:01:48.4]} 17... Kxe7 {[%clk 0:01:31.6]} 18. d4
{[%clk 0:01:48]} 18... Rad8 {[%clk 0:01:29.3]} 19. Bd3 {[%clk 0:01:46.8]} 19...
Rd7 {[%clk 0:01:23.2]} 20. Qe2 {[%clk 0:01:40.1]} 20... a6 {[%clk 0:01:21.8]}
21. Bc2 {[%clk 0:01:39.8]} 21... Qa5 {[%clk 0:01:20.8]} 22. a3 {[%clk
0:01:39.3]} 22... c5 {[%clk 0:01:18.1]} 23. O-O-O {[%clk 0:01:36.9]} 23... cxd4
{[%clk 0:01:17]} 24. Rxd4 {[%clk 0:01:37]} 24... Rxd4 {[%clk 0:01:17.2]} 25.
cxd4 {[%clk 0:01:37.9]} 25... Rd8 {[%clk 0:01:14.4]} 26. Qe4 {[%clk 0:01:33.4]}
26... Qc7 {[%clk 0:01:00.4]} 27. Kb1 {[%clk 0:01:32.5]} 27... Kf8 {[%clk
0:01:00.5]} 28. h5 {[%clk 0:01:31.3]} 28... gxh5 {[%clk 0:00:59.6]} 29. Rxh5
{[%clk 0:01:31]} 29... Ke7 {[%clk 0:00:59.2]} 30. g6 {[%clk 0:01:30.3]} 30...
Qb6 {[%clk 0:00:44.5]} 31. Qh4+ {[%clk 0:01:26.4]} 31... f6 {[%clk 0:00:44.2]}
32. Rh7 {[%clk 0:01:26.3]} 32... Rg8 {[%clk 0:00:43.6]} 33. Qh6 {[%clk
0:01:18.4]} 33... Kf8 {[%clk 0:00:40.4]} 34. Rxg7 {[%clk 0:01:14.9]} 1-0

[Event "Early-Titled-Tuesday-Blitz-August-29-2023"]
[Site "Chess.com"]
[Date "2023.08.29"]
[Round "1"]
[White "BlueWizzard"]
[Black "dosto07"]
[Result "1-0"]
[WhiteElo "2889"]
[BlackElo "2468"]
[TimeControl "180+1"]
[EndTime "8:05:48 PDT"]
[Termination "BlueWizzard won on time"]

1. d4 {[%clk 0:03:00.9]} 1... d5 {[%clk 0:02:58.9]} 2. Nc3 {[%clk 0:03:01.6]}
2... Nf6 {[%clk 0:02:56.2]} 3. Nf3 {[%clk 0:03:02]} 3... c6 {[%clk 0:02:54.6]}
4. Qd3 {[%clk 0:03:00.9]} 4... g6 {[%clk 0:02:51]} 5. e4 {[%clk 0:02:59.3]} 5...
dxe4 {[%clk 0:02:50.4]} 6. Nxe4 {[%clk 0:02:59.8]} 6... Nxe4 {[%clk 0:02:48.5]}
7. Qxe4 {[%clk 0:03:00.7]} 7... Bf5 {[%clk 0:02:47.9]} 8. Qe5 {[%clk 0:03:01]}
8... f6 {[%clk 0:02:47.1]} 9. Qe3 {[%clk 0:02:52.8]} 9... Bg7 {[%clk 0:02:36.1]}
10. Bc4 {[%clk 0:02:52.3]} 10... Nd7 {[%clk 0:02:10.2]} 11. Bb3 {[%clk
0:02:36.7]} 11... Nb6 {[%clk 0:02:01.4]} 12. h3 {[%clk 0:02:34.5]} 12... Nd5
{[%clk 0:01:57.5]} 13. Qe2 {[%clk 0:02:35.1]} 13... O-O {[%clk 0:01:56]} 14. O-O
{[%clk 0:02:34.3]} 14... b5 {[%clk 0:01:54]} 15. Re1 {[%clk 0:02:34.1]} 15...
Re8 {[%clk 0:01:49.2]} 16. c3 {[%clk 0:02:27.6]} 16... g5 {[%clk 0:01:47.1]} 17.
a4 {[%clk 0:02:26.2]} 17... a6 {[%clk 0:01:46.4]} 18. h4 {[%clk 0:02:21.6]}
18... h6 {[%clk 0:01:41.5]} 19. hxg5 {[%clk 0:02:10.5]} 19... hxg5 {[%clk
0:01:40.7]} 20. Nh2 {[%clk 0:02:11.1]} 20... Qd7 {[%clk 0:01:38.8]} 21. Qf3
{[%clk 0:02:09]} 21... e6 {[%clk 0:01:29.9]} 22. Ng4 {[%clk 0:02:03.9]} 22...
Rad8 {[%clk 0:01:15]} 23. axb5 {[%clk 0:01:58.9]} 23... axb5 {[%clk 0:01:14.4]}
24. Ne3 {[%clk 0:01:59.2]} 24... Nxe3 {[%clk 0:01:12.7]} 25. fxe3 {[%clk
0:01:56.1]} 25... Kf8 {[%clk 0:01:01.5]} 26. Ra6 {[%clk 0:01:53.4]} 26... Rc8
{[%clk 0:00:58]} 27. e4 {[%clk 0:01:53.4]} 27... Bg6 {[%clk 0:00:57.2]} 28. Bxg5
{[%clk 0:01:52.6]} 28... Bf7 {[%clk 0:00:53.4]} 29. Bxf6 {[%clk 0:01:52]} 29...
Bxf6 {[%clk 0:00:18.9]} 30. Qxf6 {[%clk 0:01:52.9]} 30... e5 {[%clk 0:00:12.9]}
31. Rf1 {[%clk 0:01:51.9]} 31... Rc7 {[%clk 0:00:10.6]} 32. Qh6+ {[%clk
0:01:47.4]} 32... Kg8 {[%clk 0:00:10.1]} 33. Qg6+ {[%clk 0:01:46]} 33... Kf8
{[%clk 0:00:09.4]} 34. Rxf7+ {[%clk 0:01:45.1]} 34... Qxf7 {[%clk 0:00:08.2]}
35. Bxf7 {[%clk 0:01:46]} 35... Rxf7 {[%clk 0:00:08.2]} 36. dxe5 {[%clk
0:01:43.4]} 36... Rxe5 {[%clk 0:00:06.6]} 37. Ra8+ {[%clk 0:01:39.7]} 37... Ke7
{[%clk 0:00:05.2]} 38. Ra7+ {[%clk 0:01:38.8]} 1-0

[Event "Early-Titled-Tuesday-Blitz-August-29-2023"]
[Site "Chess.com"]
[Date "2023.08.29"]
[Round "1"]
[White "Truequitos"]
[Black "GasconJR"]
[Result "1-0"]
[WhiteElo "2387"]
[BlackElo "2669"]
[TimeControl "180+1"]
[EndTime "8:05:49 PDT"]
[Termination "Truequitos won by checkmate"]

1. e4 {[%clk 0:02:58.8]} 1... e5 {[%clk 0:02:57.2]} 2. Nf3 {[%clk 0:02:55]} 2...
Nc6 {[%clk 0:02:57.1]} 3. d4 {[%clk 0:02:54.7]} 3... exd4 {[%clk 0:02:54.4]} 4.
Bc4 {[%clk 0:02:53.3]} 4... Bc5 {[%clk 0:02:52.4]} 5. Ng5 {[%clk 0:02:53]} 5...
Nh6 {[%clk 0:01:04.7]} 6. Nxf7 {[%clk 0:02:51.6]} 6... Bb4+ {[%clk 0:00:59.2]}
7. c3 {[%clk 0:02:30.3]} 7... Nxf7 {[%clk 0:00:59]} 8. Bxf7+ {[%clk 0:02:25.4]}
8... Kxf7 {[%clk 0:00:59.9]} 9. cxb4 {[%clk 0:02:25.6]} 9... Re8 {[%clk
0:00:59.9]} 10. O-O {[%clk 0:02:19.5]} 10... Kg8 {[%clk 0:00:59.8]} 11. b5
{[%clk 0:02:17]} 11... Ne5 {[%clk 0:00:54.1]} 12. Qxd4 {[%clk 0:02:15.1]} 12...
d6 {[%clk 0:00:54.7]} 13. Nc3 {[%clk 0:02:08]} 13... Qh4 {[%clk 0:00:43.1]} 14.
f4 {[%clk 0:01:52.9]} 14... Ng4 {[%clk 0:00:42.4]} 15. h3 {[%clk 0:01:53.4]}
15... Nf6 {[%clk 0:00:43]} 16. Bd2 {[%clk 0:01:38.2]} 16... Kh8 {[%clk 0:00:34]}
17. Rae1 {[%clk 0:01:36.3]} 17... b6 {[%clk 0:00:34.1]} 18. Nd5 {[%clk
0:01:23.7]} 18... Nxd5 {[%clk 0:00:26.8]} 19. exd5 {[%clk 0:00:51]} 19... Qg3
{[%clk 0:00:17.2]} 20. Rxe8# {[%clk 0:00:48.6]} 1-0

[Event "Early-Titled-Tuesday-Blitz-August-29-2023"]
[Site "Chess.com"]
[Date "2023.08.29"]
[Round "1"]
[White "m_ezat"]
[Black "tylityli"]
[Result "1-0"]
[WhiteElo "2665"]
[BlackElo "2349"]
[TimeControl "180+1"]
[EndTime "8:05:49 PDT"]
[Termination "m_ezat won on time"]

1. d4 {[%clk 0:03:00.9]} 1... Nf6 {[%clk 0:02:54.9]} 2. Nc3 {[%clk 0:03:00.7]}
2... d5 {[%clk 0:02:52.5]} 3. Bg5 {[%clk 0:02:59.8]} 3... Nbd7 {[%clk
0:02:50.8]} 4. e3 {[%clk 0:02:58.8]} 4... h6 {[%clk 0:02:41.5]} 5. Bh4 {[%clk
0:02:58.2]} 5... e6 {[%clk 0:02:34.3]} 6. Nf3 {[%clk 0:02:57.4]} 6... a6 {[%clk
0:02:33.7]} 7. Ne5 {[%clk 0:02:56.4]} 7... Be7 {[%clk 0:02:30.7]} 8. f4 {[%clk
0:02:56.1]} 8... c5 {[%clk 0:02:30]} 9. Bd3 {[%clk 0:02:52.6]} 9... Qb6 {[%clk
0:02:13]} 10. Na4 {[%clk 0:02:48.1]} 10... Qa5+ {[%clk 0:02:11]} 11. c3 {[%clk
0:02:47.5]} 11... b5 {[%clk 0:01:33.1]} 12. Nxd7 {[%clk 0:02:44.7]} 12... Qxa4
{[%clk 0:01:07.1]} 13. Qxa4 {[%clk 0:02:42.6]} 13... bxa4 {[%clk 0:01:07]} 14.
Nb6 {[%clk 0:02:42.5]} 14... Rb8 {[%clk 0:01:05.6]} 15. Nxc8 {[%clk 0:02:37.1]}
15... Rxc8 {[%clk 0:01:03.3]} 16. Bxa6 {[%clk 0:02:37.2]} 16... Rb8 {[%clk
0:00:59.3]} 17. Bd3 {[%clk 0:02:03.8]} 17... Rxb2 {[%clk 0:00:48.5]} 18. Rb1
{[%clk 0:01:52.2]} 18... Rxb1+ {[%clk 0:00:42.8]} 19. Bxb1 {[%clk 0:01:51.8]}
19... O-O {[%clk 0:00:36.3]} 20. Bc2 {[%clk 0:01:41.4]} 20... Rb8 {[%clk
0:00:30.3]} 21. Kd2 {[%clk 0:01:40.6]} 21... Rb2 {[%clk 0:00:29.1]} 22. Rb1
{[%clk 0:01:40]} 22... Rxb1 {[%clk 0:00:26.9]} 23. Bxb1 {[%clk 0:01:40]} 23...
c4 {[%clk 0:00:12]} 24. Be1 {[%clk 0:01:29.8]} 24... a3 {[%clk 0:00:10.2]} 25.
Ke2 {[%clk 0:01:23.4]} 25... Ne4 {[%clk 0:00:01.5]} 26. Kf3 {[%clk 0:01:22.9]}
1-0

[Event "Early-Titled-Tuesday-Blitz-August-29-2023"]
[Site "Chess.com"]
[Date "2023.08.29"]
[Round "1"]
[White "jk13"]
[Black "MeisterJabo"]
[Result "1-0"]
[WhiteElo "2642"]
[BlackElo "2320"]
[TimeControl "180+1"]
[EndTime "8:05:56 PDT"]
[Termination "jk13 won on time"]

1. e4 {[%clk 0:03:00.9]} 1... e5 {[%clk 0:02:57.9]} 2. Nf3 {[%clk 0:03:00.5]}
2... Nc6 {[%clk 0:02:56.8]} 3. Bc4 {[%clk 0:03:00.9]} 3... Nf6 {[%clk
0:02:54.9]} 4. d3 {[%clk 0:03:01]} 4... Bc5 {[%clk 0:02:51.5]} 5. O-O {[%clk
0:03:00.8]} 5... a6 {[%clk 0:02:49.5]} 6. c3 {[%clk 0:03:01.1]} 6... d6 {[%clk
0:02:49.1]} 7. Bb3 {[%clk 0:02:58.3]} 7... Ba7 {[%clk 0:02:49]} 8. Nbd2 {[%clk
0:02:56.4]} 8... O-O {[%clk 0:02:46.3]} 9. h3 {[%clk 0:02:55.1]} 9... Be6 {[%clk
0:02:41.6]} 10. Bc2 {[%clk 0:02:54.6]} 10... h6 {[%clk 0:02:41.4]} 11. Re1
{[%clk 0:02:51.6]} 11... Re8 {[%clk 0:02:36.5]} 12. Nf1 {[%clk 0:02:48.5]} 12...
d5 {[%clk 0:02:36.2]} 13. Qe2 {[%clk 0:02:44.3]} 13... dxe4 {[%clk 0:02:33.5]}
14. dxe4 {[%clk 0:02:44.1]} 14... Qe7 {[%clk 0:02:30.7]} 15. Ng3 {[%clk
0:02:43.6]} 15... Rad8 {[%clk 0:02:29.1]} 16. Nh4 {[%clk 0:02:37.4]} 16... Qc5
{[%clk 0:02:17]} 17. Nhf5 {[%clk 0:02:30.5]} 17... Bc4 {[%clk 0:02:14.6]} 18.
Qf3 {[%clk 0:02:29.4]} 18... Bd3 {[%clk 0:01:52.2]} 19. Bb3 {[%clk 0:01:53.1]}
19... Kh8 {[%clk 0:00:25.8]} 20. Nxh6 {[%clk 0:01:30.8]} 20... Qxf2+ {[%clk
0:00:24.9]} 21. Qxf2 {[%clk 0:01:31.7]} 21... Bxf2+ {[%clk 0:00:25.3]} 22. Kxf2
{[%clk 0:01:32.3]} 22... gxh6 {[%clk 0:00:26.2]} 23. Bxh6 {[%clk 0:01:25.5]}
23... Rg8 {[%clk 0:00:08.2]} 24. Rad1 {[%clk 0:01:08.7]} 24... Rg6 {[%clk
0:00:02.9]} 25. Bc1 {[%clk 0:01:06.2]} 1-0

[Event "Early-Titled-Tuesday-Blitz-August-29-2023"]
[Site "Chess.com"]
[Date "2023.08.29"]
[Round "1"]
[White "cthake"]
[Black "TrenerChos"]
[Result "0-1"]
[WhiteElo "1849"]
[BlackElo "2537"]
[TimeControl "180+1"]
[EndTime "8:05:57 PDT"]
[Termination "TrenerChos won on time"]

1. e4 {[%clk 0:02:59.1]} 1... e5 {[%clk 0:02:58.4]} 2. Nf3 {[%clk 0:02:57.7]}
2... Nc6 {[%clk 0:02:58.2]} 3. Bb5 {[%clk 0:02:55.8]} 3... Nf6 {[%clk 0:02:58]}
4. O-O {[%clk 0:02:50.2]} 4... Nxe4 {[%clk 0:02:54.2]} 5. d4 {[%clk 0:02:40.3]}
5... Nd6 {[%clk 0:02:49.1]} 6. Bxc6 {[%clk 0:02:34.5]} 6... dxc6 {[%clk
0:02:47.7]} 7. Nxe5 {[%clk 0:02:33.4]} 7... Be7 {[%clk 0:02:46.7]} 8. Re1 {[%clk
0:02:28]} 8... O-O {[%clk 0:02:46]} 9. Nc3 {[%clk 0:02:27.3]} 9... Bf6 {[%clk
0:02:45.2]} 10. f4 {[%clk 0:02:20.4]} 10... Nf5 {[%clk 0:02:43]} 11. Ne2 {[%clk
0:02:07.5]} 11... Be6 {[%clk 0:02:38.2]} 12. c3 {[%clk 0:01:57.8]} 12... c5
{[%clk 0:02:37]} 13. a4 {[%clk 0:01:29.6]} 13... cxd4 {[%clk 0:02:29.6]} 14.
Nxd4 {[%clk 0:01:28.7]} 14... Nxd4 {[%clk 0:02:23]} 15. Qxd4 {[%clk 0:01:22.2]}
15... Qe7 {[%clk 0:02:12.6]} 16. Be3 {[%clk 0:01:17.7]} 16... Rfd8 {[%clk
0:02:11.5]} 17. Qc5 {[%clk 0:01:15.9]} 17... Qxc5 {[%clk 0:02:06.6]} 18. Bxc5
{[%clk 0:01:15.9]} 18... Rd2 {[%clk 0:02:06.7]} 19. b4 {[%clk 0:00:55.4]} 19...
Bd5 {[%clk 0:01:58.6]} 20. g3 {[%clk 0:00:22.6]} 20... Rg2+ {[%clk 0:01:54.5]}
21. Kf1 {[%clk 0:00:21]} 21... Rxh2 {[%clk 0:01:53.6]} 22. Ng4 {[%clk
0:00:20.8]} 22... Rh1+ {[%clk 0:01:49.1]} 23. Kf2 {[%clk 0:00:20.3]} 23... Rxe1
{[%clk 0:01:47.5]} 24. Rxe1 {[%clk 0:00:18.1]} 24... Bxc3 {[%clk 0:01:47.2]} 25.
Re7 {[%clk 0:00:17.2]} 25... b6 {[%clk 0:01:45.4]} 26. Be3 {[%clk 0:00:16.2]}
26... Bxb4 {[%clk 0:01:44.9]} 27. Rxc7 {[%clk 0:00:16.4]} 27... Be6 {[%clk
0:01:44.5]} 28. Ne5 {[%clk 0:00:15]} 28... f6 {[%clk 0:01:44]} 29. Nd3 {[%clk
0:00:14.3]} 29... Bd6 {[%clk 0:01:41.8]} 30. Rc1 {[%clk 0:00:11.3]} 30... Rd8
{[%clk 0:01:40.9]} 31. Re1 {[%clk 0:00:10.9]} 31... Bb3 {[%clk 0:01:40]} 32. Re2
{[%clk 0:00:10.4]} 32... Bxa4 {[%clk 0:01:39.3]} 33. Nb2 {[%clk 0:00:09]} 33...
Bb5 {[%clk 0:01:38.7]} 34. Rd2 {[%clk 0:00:08.3]} 34... Be7 {[%clk 0:01:38.6]}
35. Rc2 {[%clk 0:00:06.6]} 35... Bc5 {[%clk 0:01:37.7]} 36. Bxc5 {[%clk
0:00:05.6]} 36... Rc8 {[%clk 0:01:37.9]} 0-1

[Event "Early-Titled-Tuesday-Blitz-August-29-2023"]
[Site "Chess.com"]
[Date "2023.08.29"]
[Round "1"]
[White "guillembaches"]
[Black "Eternauta2400"]
[Result "0-1"]
[WhiteElo "2426"]
[BlackElo "2802"]
[TimeControl "180+1"]
[EndTime "8:05:58 PDT"]
[Termination "Eternauta2400 won on time"]

1. e4 {[%clk 0:03:00.9]} 1... c6 {[%clk 0:02:59.2]} 2. d4 {[%clk 0:02:59.8]}
2... d5 {[%clk 0:03:00.1]} 3. e5 {[%clk 0:03:00.3]} 3... Bf5 {[%clk 0:03:00.2]}
4. h4 {[%clk 0:02:59.3]} 4... h6 {[%clk 0:02:59.9]} 5. Be3 {[%clk 0:02:58.1]}
5... e6 {[%clk 0:02:59.4]} 6. h5 {[%clk 0:02:51.5]} 6... Qb6 {[%clk 0:02:58.2]}
7. Qc1 {[%clk 0:02:45.1]} 7... c5 {[%clk 0:02:57.2]} 8. dxc5 {[%clk 0:02:37.8]}
8... Bxc5 {[%clk 0:02:58.1]} 9. Bxc5 {[%clk 0:02:37]} 9... Qxc5 {[%clk 0:02:59]}
10. c3 {[%clk 0:02:37]} 10... Nc6 {[%clk 0:02:59.1]} 11. Nf3 {[%clk 0:02:36.1]}
11... Nge7 {[%clk 0:02:57.3]} 12. Nbd2 {[%clk 0:02:35.8]} 12... O-O {[%clk
0:02:56.5]} 13. Nb3 {[%clk 0:02:35.6]} 13... Qb6 {[%clk 0:02:55.5]} 14. Qf4
{[%clk 0:02:25.6]} 14... a5 {[%clk 0:02:51.3]} 15. g4 {[%clk 0:02:24.4]} 15...
Be4 {[%clk 0:02:50.6]} 16. g5 {[%clk 0:02:16.2]} 16... hxg5 {[%clk 0:02:10.5]}
17. Qxg5 {[%clk 0:01:49]} 17... f6 {[%clk 0:02:08.5]} 18. exf6 {[%clk
0:01:42.1]} 18... Rxf6 {[%clk 0:02:09.4]} 19. Rg1 {[%clk 0:01:39]} 19... Rf7
{[%clk 0:02:02.7]} 20. O-O-O {[%clk 0:01:04.5]} 20... Bxf3 {[%clk 0:01:57.3]}
21. Rd4 {[%clk 0:00:53.8]} 21... Nxd4 {[%clk 0:01:52.4]} 22. Nxd4 {[%clk
0:00:49.1]} 22... Nf5 {[%clk 0:01:32.8]} 23. h6 {[%clk 0:00:45.9]} 23... Nxd4
{[%clk 0:01:15.7]} 24. hxg7 {[%clk 0:00:38]} 24... Qd6 {[%clk 0:01:08.2]} 0-1

[Event "Early-Titled-Tuesday-Blitz-August-29-2023"]
[Site "Chess.com"]
[Date "2023.08.29"]
[Round "1"]
[White "Goffredo_Fofi"]
[Black "ChEsper99"]
[Result "1-0"]
[WhiteElo "2567"]
[BlackElo "2141"]
[TimeControl "180+1"]
[EndTime "8:05:59 PDT"]
[Termination "Goffredo_Fofi won by resignation"]

1. d4 {[%clk 0:03:00.9]} 1... d5 {[%clk 0:02:57.7]} 2. Nf3 {[%clk 0:02:59.5]}
2... Nf6 {[%clk 0:02:57.2]} 3. Bf4 {[%clk 0:03:00.1]} 3... e6 {[%clk 0:02:53.9]}
4. e3 {[%clk 0:03:00.4]} 4... c5 {[%clk 0:02:54.3]} 5. c3 {[%clk 0:02:59.2]}
5... Bd6 {[%clk 0:02:54]} 6. Nbd2 {[%clk 0:02:59.4]} 6... Qc7 {[%clk 0:02:52]}
7. Ne5 {[%clk 0:02:58.1]} 7... Nbd7 {[%clk 0:02:47.9]} 8. Ndf3 {[%clk
0:02:58.3]} 8... O-O {[%clk 0:02:36.9]} 9. h3 {[%clk 0:02:56.4]} 9... Ne4 {[%clk
0:02:24.5]} 10. Bd3 {[%clk 0:02:53.6]} 10... f6 {[%clk 0:02:22.7]} 11. Nxd7
{[%clk 0:02:53.2]} 11... Bxd7 {[%clk 0:02:20.5]} 12. Bxd6 {[%clk 0:02:53.1]}
12... Nxd6 {[%clk 0:02:06.6]} 13. O-O {[%clk 0:02:52.1]} 13... Bb5 {[%clk
0:02:01.5]} 14. Bxb5 {[%clk 0:02:46.8]} 14... Nxb5 {[%clk 0:02:02.4]} 15. Qe2
{[%clk 0:02:39.3]} 15... Nd6 {[%clk 0:02:00.9]} 16. Rfc1 {[%clk 0:02:37]} 16...
a5 {[%clk 0:01:42.6]} 17. Nd2 {[%clk 0:02:34.9]} 17... c4 {[%clk 0:01:40.7]} 18.
e4 {[%clk 0:02:34.8]} 18... b5 {[%clk 0:01:13.7]} 19. exd5 {[%clk 0:02:32.5]}
19... exd5 {[%clk 0:01:13.9]} 20. Qf3 {[%clk 0:02:33.3]} 20... Qc6 {[%clk
0:01:07.1]} 21. Nf1 {[%clk 0:02:33.2]} 21... Ne4 {[%clk 0:01:03.8]} 22. Ne3
{[%clk 0:02:33]} 22... Rfe8 {[%clk 0:00:57.6]} 23. a3 {[%clk 0:02:19.2]} 23...
Ra7 {[%clk 0:00:54.3]} 24. Re1 {[%clk 0:02:08.2]} 24... Rae7 {[%clk 0:00:50.3]}
25. Nf5 {[%clk 0:02:07.3]} 25... Rb7 {[%clk 0:00:42.5]} 26. Qg4 {[%clk
0:02:02.8]} 26... Kh8 {[%clk 0:00:35.8]} 27. f3 {[%clk 0:01:58]} 27... Ng5
{[%clk 0:00:18]} 28. Rxe8+ {[%clk 0:01:55.1]} 28... Qxe8 {[%clk 0:00:18.1]} 29.
h4 {[%clk 0:01:48.6]} 29... g6 {[%clk 0:00:13.4]} 30. Nd6 {[%clk 0:01:31.8]}
30... Qe3+ {[%clk 0:00:12.7]} 31. Kh2 {[%clk 0:01:32]} 31... Rb6 {[%clk
0:00:05.1]} 32. hxg5 {[%clk 0:01:21]} 32... Rxd6 {[%clk 0:00:05.2]} 33. Qc8+
{[%clk 0:01:20.9]} 33... Kg7 {[%clk 0:00:05.5]} 34. Qc7+ {[%clk 0:01:21.1]} 1-0